bitfinex-derivatives/quotes_ETHF0:USTF0_20250817
["timestamp","ask_amount","ask_price","bid_price","bid_amount"]
[1755395426681,4.6979,4409.8,4409.7,23.0177]
[1755395426986,4.4396,4409.8,4409.7,23.2841]
[1755395427576,3.5425,4409.8,4409.7,23.2841]
[1755395428281,3.3779,4409.8,4409.7,23.2841]
[1755395428477,3.2078,4409.8,4409.7,23.2841]
[1755395432092,3.3779,4409.8,4409.7,23.2841]
[1755395434391,3.2078,4409.8,4409.7,23.2841]
[1755395435987,4.4396,4409.8,4409.7,23.2841]
[1755395436492,4.6979,4409.8,4409.7,0.8722]
[1755395436694,4.6979,4409.8,4409.7,22.5832]
[1755395438289,4.6979,4409.8,4409.2,0.2652]
[1755395438490,1.4901,4409.3,4408.8,3.2078]
[1755395438688,3.2078,4409.8,4408.9,23.2331]
[1755395438689,1.4901,4409.0,4408.9,23.2331]
[1755395438896,0.5912,4408.4,4408.2,0.3905]
[1755395439102,1.4901,4408.4,4408.3,22.7937]
[1755395439596,1.4901,4408.4,4408.3,23.2311]
[1755395440199,1.4901,4408.4,4408.3,1.5291]
[1755395440393,1.2318,4408.4,4408.3,23.2281]
[1755395441398,0.8563,4408.4,4408.3,23.2281]
[1755395441600,0.5912,4408.4,4408.3,23.2281]
[1755395441800,1.2318,4408.4,4408.3,23.2281]
[1755395449607,0.2448,4409.2,4408.7,1.1855]
[1755395449808,1.2301,4409.2,4409.1,1.2695]
[1755395450014,1.2301,4409.2,4409.1,23.1144]
[1755395450208,0.8448,4409.2,4409.1,23.1144]
[1755395450415,0.6,4409.2,4409.1,23.1144]
[1755395450716,3.2078,4409.7,4409.6,1.1841]
[1755395450717,3.8078,4409.7,4409.6,1.1841]
[1755395450908,4.4379,4409.7,4409.6,23.1114]
[1755395451412,1.2301,4409.7,4409.6,23.1114]
[1755395451815,3.3842,4410.2,4410.1,1.4334]
[1755395452016,4.4379,4410.2,4410.1,23.1104]
[1755395452207,4.684,4410.2,4410.1,23.1104]
[1755395453014,4.4379,4410.2,4410.1,23.1104]
[1755395453612,3.7912,4410.2,4410.1,23.1104]
[1755395454209,4.4379,4410.2,4410.1,23.1104]
[1755395455915,3.2078,4410.2,4410.1,23.1104]
[1755395456107,3.7912,4410.2,4410.1,23.1104]
[1755395456312,4.4379,4410.2,4410.1,23.1104]
[1755395456513,4.4379,4410.2,4410.1,1.4334]
[1755395456713,4.684,4410.2,4410.1,23.0974]
[1755395458518,4.4392,4410.2,4409.7,0.3602]
[1755395458816,0.5834,4409.8,4409.7,1.4334]
[1755395459023,0.5834,4409.8,4409.7,23.0914]
[1755395460219,0.6301,4410.1,4409.7,0.8253]
[1755395460429,1.4762,4409.5,4409.4,1.4334]
[1755395460620,1.4762,4409.5,4409.4,23.0864]
[1755395463323,3.7925,4410.2,4410.1,0.3249]
[1755395463527,4.0539,4410.2,4410.1,22.2222]
[1755395464029,4.684,4410.2,4410.1,22.0612]
[1755395464231,4.684,4410.2,4410.1,21.8119]
[1755395464429,4.684,4410.2,4410.1,21.648]
[1755395469231,4.684,4410.2,4410.1,21.8973]
[1755395469419,4.684,4410.2,4410.1,21.648]
[1755395469823,0.6301,4409.4,4408.5,1.31076]
[1755395470128,1.0537,4409.2,4409.1,0.1639]
[1755395470327,1.4762,4409.2,4409.1,0.4132]
[1755395470634,1.4762,4409.2,4409.1,22.0422]
[1755395471429,3.2078,4409.4,4408.4,3.2078]
[1755395471430,0.6,4408.6,4408.5,1.4334]
[1755395471632,1.2301,4408.6,4408.5,23.0604]
[1755395471929,0.5834,4408.9,4408.8,1.1855]
[1755395472130,1.2301,4408.9,4408.8,1.4334]
[1755395474026,3.4526,4409.4,4408.9,0.2493]
[1755395474227,4.4379,4409.4,4409.3,1.4334]
[1755395474427,4.4379,4409.4,4409.3,23.0554]
[1755395474428,3.3842,4409.4,4409.3,23.0554]
[1755395474638,3.2078,4409.4,4409.3,23.0554]
[1755395475537,0.2448,4409.9,4409.8,1.4334]
[1755395475538,4.684,4409.9,4409.8,1.4334]
[1755395475837,4.684,4409.9,4409.8,23.0544]
[1755395476334,4.4379,4409.9,4409.8,23.0544]
[1755395477637,4.6975,4409.9,4409.8,23.0544]
[1755395478035,4.0526,4409.9,4409.8,23.0544]
[1755395478335,4.4308,4409.9,4409.8,23.0544]
[1755395481236,4.6904,4409.9,4409.8,23.0544]
[1755395481736,4.4308,4409.9,4409.8,23.0544]
[1755395483645,3.2078,4409.9,4409.8,23.0544]
[1755395483944,3.6346,4409.9,4409.8,23.0544]
[1755395484143,4.1893,4409.9,4409.8,23.0544]
[1755395484546,4.4473,4409.9,4409.8,23.0544]
[1755395485341,4.7069,4409.9,4409.8,23.0544]
[1755395486044,4.4473,4409.9,4409.0,0.45331]
[1755395486346,4.4473,4409.9,4409.7,0.2512]
[1755395486347,1.4991,4409.8,4409.7,0.2512]
[1755395486550,1.4991,4409.8,4409.7,23.068]
[1755395486945,1.2395,4409.8,4409.0,0.5058]
[1755395487152,0.3482,4409.2,4409.1,0.5862]
[1755395487345,0.8658,4409.2,4409.1,22.8104]
[1755395487543,0.8658,4409.2,4409.1,0.8374]
[1755395487742,1.4991,4409.2,4409.1,22.681]
[1755395488037,1.4991,4409.2,4409.1,23.064]
[1755395488350,1.4991,4409.2,4409.1,22.2568]
[1755395490345,1.4991,4409.2,4409.1,22.2528]
[1755395491558,1.4991,4409.2,4409.1,0.6678]
[1755395491747,1.4991,4409.2,4409.1,21.9998]
[1755395492647,0.5147,4408.8,4408.7,0.2512]
[1755395492853,1.4991,4408.8,4408.7,22.6298]
[1755395493054,1.4991,4408.8,4408.7,23.054]
[1755395493249,1.4991,4408.8,4408.6,32.656]
[1755395493449,1.1509,4408.7,4408.6,21.575]
[1755395493645,1.4991,4408.7,4408.6,21.575]
[1755395493847,0.6062,4408.5,4408.4,21.574]
[1755395494062,1.4991,4408.5,4408.4,21.574]
[1755395494555,1.4991,4408.5,4408.4,21.8252]
[1755395494757,1.4991,4408.5,4408.4,0.2512]
[1755395495156,1.4991,4408.5,4407.4,0.45347]
[1755395495357,3.814,4408.2,4408.1,1.2238]
[1755395495655,4.7069,4408.2,4408.1,23.046]
[1755395496958,0.8929,4408.1,4407.5,0.2512]
[1755395497158,0.3482,4407.7,4407.6,22.7918]
[1755395497362,0.9815,4407.7,4407.6,23.043]
[1755395497556,0.8613,4407.7,4407.6,23.043]
[1755395497757,1.2395,4407.7,4407.6,23.043]
[1755395499359,4.4473,4407.7,4407.6,23.043]
[1755395499558,4.7069,4407.7,4407.6,1.475]
[1755395499756,4.7069,4407.7,4407.3,32.655]
[1755395499956,1.4991,4407.5,4407.4,21.7296]
[1755395500160,1.4991,4407.5,4407.4,22.7868]
[1755395500860,1.4991,4407.5,4407.4,23.038]
[1755395502153,3.2078,4407.7,4407.4,23.038]
[1755395502154,3.2078,4407.7,4407.6,0.3362]
[1755395502358,3.2078,4408.3,4408.2,0.5862]
[1755395502662,3.2078,4408.3,4408.2,23.034]
[1755395505068,0.2551,4408.8,4408.3,0.8888]
[1755395505266,0.2551,4408.8,4408.7,1.475]
[1755395505460,0.2551,4408.8,4408.7,23.028]
[1755395505969,0.6033,4408.8,4408.7,23.028]
[1755395506164,0.9815,4408.8,4408.7,23.028]
[1755395506660,1.4991,4408.8,4408.7,21.8042]
[1755395506861,1.4991,4408.8,4408.7,21.9708]
[1755395507165,0.6333,4408.6,4408.4,21.548]
[1755395507365,1.4991,4408.4,4408.3,1.4405]
[1755395507659,1.4991,4408.4,4408.3,22.9875]
[1755395507860,0.2597,4408.3,4407.6,0.2453]
[1755395508065,1.2335,4407.7,4407.6,1.4405]
[1755395508266,1.2335,4407.7,4407.6,22.9855]
[1755395508661,0.9076,4408.0,4407.6,1.4405]
[1755395508867,0.9728,4408.0,4407.9,1.4405]
[1755395509064,0.5905,4408.0,4407.9,1.4405]
[1755395509265,0.3308,4408.0,4407.9,1.4405]
[1755395509470,0.1614,4408.0,4407.9,1.4405]
[1755395510778,3.7993,4409.0,4408.9,0.5892]
[1755395510972,4.4413,4409.0,4408.9,1.4405]
[1755395511471,4.7069,4409.0,4408.9,1.4405]
[1755395519878,4.4413,4409.0,4407.9,3.2078]
[1755395520083,1.2335,4407.7,4407.6,1.1971]
[1755395520380,0.8512,4407.7,4407.6,22.9575]
[1755395520570,0.5905,4407.7,4407.6,22.9575]
[1755395520770,0.3308,4407.7,4407.6,22.9575]
[1755395520971,1.4991,4407.7,4407.6,22.9575]
[1755395521180,1.4991,4407.7,4407.6,1.4405]
[1755395521383,1.2335,4407.7,4407.6,22.9565]
[1755395521784,1.2335,4407.7,4407.6,1.4405]
[1755395522285,0.8512,4407.7,4406.8,3.2078]
[1755395522486,0.5915,4407.0,4406.9,22.3465]
[1755395522683,1.4991,4407.0,4406.9,1.4405]
[1755395522879,1.4991,4407.0,4406.9,22.9515]
[1755395523783,1.4991,4407.0,4406.9,22.9525]
[1755395524977,1.4991,4407.0,4406.9,22.7091]
[1755395525178,1.4991,4407.0,4406.9,21.512]
[1755395525383,1.2384,4406.5,4406.4,1.0779]
[1755395525682,0.5915,4405.8,4405.7,0.4256]
[1755395525883,0.5915,4405.8,4405.7,21.6781]
[1755395526088,0.5915,4405.8,4405.7,22.1779]
[1755395526383,1.2335,4405.8,4405.7,22.9475]
[1755395526582,1.4991,4405.8,4405.7,22.9475]
[1755395526980,1.4991,4405.8,4405.7,22.7051]
[1755395527182,1.4991,4405.8,4405.7,0.4256]
[1755395527478,1.2335,4405.4,4405.3,1.4405]
[1755395527681,1.4991,4405.4,4405.3,22.9465]
[1755395528782,1.2335,4405.3,4405.2,0.5892]
[1755395528974,1.4991,4405.3,4405.2,22.9495]
[1755395531080,1.4991,4405.3,4404.1,33.29023645]
[1755395531081,0.5915,4404.9,4404.8,0.6709]
[1755395531281,1.4991,4404.9,4404.8,1.0335]
[1755395531480,1.4991,4404.9,4404.8,22.9435]
[1755395532082,1.2335,4404.9,4404.3,0.6079]
[1755395532383,1.4991,4404.9,4404.8,1.4405]
[1755395532578,1.4991,4404.9,4404.8,22.9445]
[1755395532780,0.5915,4404.9,4404.2,0.3626]
[1755395532973,0.5915,4404.3,4404.2,1.4405]
[1755395533178,0.5915,4404.3,4404.2,22.9435]
[1755395533378,0.1614,4404.3,4404.2,22.9435]
[1755395534387,0.5905,4404.4,4404.3,1.4405]
[1755395534588,0.9728,4404.4,4404.3,1.4405]
[1755395535086,1.2335,4404.4,4404.3,1.4405]
[1755395535283,4.4413,4405.0,4404.9,1.4405]
[1755395535485,4.4413,4405.0,4404.9,22.9455]
[1755395535684,4.7069,4405.0,4404.9,22.9455]
[1755395538384,3.3692,4405.0,4404.9,22.9455]
[1755395538590,4.1852,4405.0,4404.9,22.9455]
[1755395538779,3.2078,4405.5,4404.9,22.9455]
[1755395538982,4.4611,4405.5,4405.4,0.5841]
[1755395539182,3.2078,4405.5,4405.4,22.9711]
[1755395539785,4.4611,4405.5,4405.4,22.9711]
[1755395541087,3.2078,4405.5,4405.4,21.498]
[1755395541286,3.3806,4405.5,4405.4,22.9711]
[1755395541488,4.4611,4405.5,4405.4,22.9711]
[1755395541991,4.7158,4405.5,4405.4,22.9711]
[1755395544388,4.4611,4405.5,4405.4,22.9711]
[1755395547992,4.7158,4405.5,4405.4,22.7168]
[1755395548896,0.6144,4404.8,4404.7,0.8401]
[1755395549099,1.508,4404.8,4404.7,22.7008]
[1755395549597,1.508,4404.8,4404.7,22.9551]
[1755395551501,1.508,4404.8,4404.7,22.7008]
[1755395551697,1.3352,4404.7,4404.2,0.889]
[1755395551899,0.1771,4404.7,4404.6,0.5841]
[1755395552196,1.508,4404.7,4404.6,22.9501]
[1755395553802,0.1728,4404.7,4404.6,22.9501]
[1755395555101,1.20778623,4406.3,4404.6,22.9501]
[1755395555102,3.8467,4405.4,4404.8,0.5841]
[1755395555295,0.19588533,4405.3,4405.2,0.5841]
[1755395555497,0.19588533,4405.3,4405.2,22.9461]
[1755395555694,3.2078,4405.4,4405.2,22.0571]
[1755395555897,3.3806,4405.4,4405.3,1.4731]
[1755395556207,4.39254172,4405.4,4405.3,1.4731]
[1755395556799,4.65704172,4405.4,4405.3,1.4731]
[1755395557106,4.91174172,4405.4,4405.3,1.4731]
[1755395559004,4.65704172,4405.4,4405.3,1.4731]
[1755395559900,3.75364172,4405.4,4405.3,1.4731]
[1755395560105,3.57654172,4405.4,4405.3,1.4731]
[1755395562506,4.00914172,4405.4,4405.3,1.4731]
[1755395562708,4.91174172,4405.4,4405.3,1.4731]
[1755395562908,4.91174172,4405.4,4405.3,1.2188]
[1755395563702,0.6144,4404.9,4404.8,1.0944]
[1755395563908,1.2533,4404.9,4404.8,22.9331]
[1755395564708,1.508,4404.9,4404.8,22.9331]
[1755395565007,1.508,4404.9,4404.8,22.9311]
[1755395565708,1.2533,4404.9,4404.8,22.0421]
[1755395565908,1.2533,4404.9,4404.8,22.9311]
[1755395566411,1.2533,4404.4,4404.3,1.4731]
[1755395566707,3.40380268,4404.9,4404.3,1.4731]
[1755395566708,3.2078,4404.9,4404.3,22.0391]
[1755395566908,1.44932742,4404.8,4404.7,0.5841]
[1755395567213,0.19602742,4404.8,4404.7,22.6913]
[1755395567411,0.19602742,4404.8,4404.7,22.9434]
[1755395567606,0.78862742,4404.8,4404.7,22.9434]
[1755395567814,0.19602742,4404.8,4404.7,22.9434]
[1755395568907,0.2489,4405.5,4404.8,0.45375]
[1755395569110,1.2018,4405.5,4405.4,1.4958]
[1755395569413,1.2018,4405.5,4405.4,22.9478]
[1755395572113,0.8415,4405.5,4405.4,22.9478]
[1755395573315,1.2018,4405.5,4405.4,22.9478]
[1755395576315,1.4604,4405.5,4405.4,22.9478]
[1755395578019,4.6682,4406.1,4406.0,1.4958]
[1755395578222,4.6682,4406.1,4406.0,22.9348]
[1755395579724,3.2078,4406.1,4406.0,22.9348]
[1755395579922,3.6249,4406.1,4406.0,22.9348]
[1755395580224,3.5587,4406.1,4406.0,22.9348]
[1755395580425,3.2078,4406.1,4406.0,22.9348]
[1755395581724,3.4567,4406.1,4406.0,22.9348]
[1755395582224,3.6322,4406.1,4406.0,22.9348]
[1755395582430,4.4096,4406.1,4406.0,22.9348]
[1755395582624,4.6682,4406.1,4406.0,22.9348]
[1755395585534,4.4096,4406.1,4406.0,22.9348]
[1755395587336,4.6682,4406.1,4405.6,0.2521]
[1755395587525,0.8678,4406.0,4405.7,21.6824]
[1755395587837,1.4604,4405.8,4405.7,1.08]
[1755395588038,1.4604,4405.8,4405.7,22.498]
[1755395588336,1.4604,4405.8,4405.7,22.9138]
[1755395595339,1.2018,4405.8,4405.7,22.9138]
[1755395599441,1.4453,4405.8,4405.7,22.9138]
[1755395600544,1.4453,4405.8,4405.7,22.2655]
[1755395601640,1.4453,4405.8,4405.7,0.8475]
[1755395601941,1.4453,4405.8,4405.7,22.2435]
[1755395602140,1.4453,4405.8,4405.7,22.8626]
[1755395602342,1.2018,4405.8,4405.7,22.8626]
[1755395602839,0.9589,4405.8,4405.7,21.391]
[1755395603045,1.468,4405.8,4405.7,21.391]
[1755395604138,1.468,4405.8,4405.7,21.39]
[1755395606047,1.468,4405.8,4405.4,21.388]
[1755395606242,3.8124,4405.5,4405.4,21.6369]
[1755395606542,4.6878,4405.5,4405.4,21.6369]
[1755395607248,4.6878,4405.5,4405.3,0.5936]
[1755395607249,1.2365,4405.4,4405.3,0.5936]
[1755395607442,1.48,4405.4,4405.3,0.8425]
[1755395607642,1.48,4405.4,4405.2,21.386]
[1755395608044,1.48,4405.3,4405.2,21.386]
[1755395608242,1.48,4405.3,4405.2,21.6349]
[1755395608437,1.48,4405.3,4405.2,22.8476]
[1755395608638,1.48,4405.3,4405.2,1.4616]
[1755395608949,1.48,4405.3,4405.2,22.8436]
[1755395609650,1.48,4405.3,4405.2,1.4616]
[1755395609851,1.48,4405.3,4405.2,22.8436]
[1755395612949,1.48,4405.3,4405.2,1.4616]
[1755395613148,1.48,4405.3,4405.2,0.2489]
[1755395613350,1.48,4405.2,4405.1,21.375]
[1755395613944,0.6046,4405.0,4404.9,0.2489]
[1755395614145,4.6878,4405.0,4404.9,0.2489]
[1755395614752,4.6878,4405.0,4404.8,21.375]
[1755395614946,0.2435,4404.9,4404.3,21.63]
[1755395615146,4.1786,4404.5,4404.4,22.8336]
[1755395615354,4.4443,4404.5,4404.4,22.8336]
[1755395615855,4.6878,4404.5,4404.4,22.8336]
[1755395617549,4.4443,4404.5,4404.4,22.8336]
[1755395618358,4.6878,4404.5,4404.4,22.8336]
[1755395622965,3.2078,4404.5,4404.4,22.8336]
[1755395628063,3.4696,4404.5,4404.4,22.8336]
[1755395628560,3.2078,4404.5,4404.4,22.8336]
[1755395628963,2.8078,4404.5,4404.4,22.8336]
[1755395630567,3.6245,4405.0,4404.9,0.5885]
[1755395630768,4.2809,4405.0,4404.9,22.8526]
[1755395630963,3.8863,4405.0,4404.9,22.8526]
[1755395631163,4.2809,4405.0,4404.9,22.8526]
[1755395631564,4.4557,4405.0,4404.9,22.8526]
[1755395633769,2.269,4407.1,4404.9,22.8526]
[1755395633770,3.6024,4405.5,4405.0,0.45374]
[1755395633966,3.2078,4405.5,4405.4,1.5026]
[1755395634169,3.2078,4405.5,4405.4,22.8436]
[1755395634370,4.1939,4405.5,4405.4,22.8436]
[1755395634569,4.7147,4405.5,4405.4,22.8436]
[1755395638272,4.7147,4405.5,4405.4,22.1919]
[1755395638873,4.7147,4405.5,4405.4,22.8436]
[1755395642477,4.4557,4405.5,4405.4,22.8436]
[1755395643081,4.7147,4405.5,4405.4,22.8436]
[1755395643278,4.7147,4405.5,4405.4,22.1919]
[1755395643476,4.7147,4405.5,4405.4,21.341]
[1755395643872,4.7147,4405.5,4405.4,21.767]
[1755395644178,4.7147,4405.5,4405.4,21.6034]
[1755395644974,4.7147,4405.5,4404.2,3.2078]
[1755395645173,0.5915,4404.9,4404.8,1.2454]
[1755395645373,1.5069,4404.9,4404.8,22.8206]
[1755395647673,1.5069,4404.9,4404.8,1.5026]
[1755395647877,1.5069,4404.9,4404.8,22.8156]
[1755395648275,1.5069,4404.9,4404.8,1.5026]
[1755395648780,1.5069,4404.9,4404.8,22.8136]
[1755395649979,1.5069,4404.9,4404.8,21.4746]
[1755395650282,1.5069,4404.9,4404.8,21.737]
[1755395650875,0.5915,4404.9,4404.5,0.9141]
[1755395651083,0.5915,4404.7,4404.6,21.7298]
[1755395651378,1.5069,4404.7,4404.6,22.5472]
[1755395651776,1.5069,4404.7,4404.6,22.8096]
[1755395658887,0.3377,4404.4,4404.3,0.8266]
[1755395659082,1.4622,4404.4,4404.3,22.6419]
[1755395659285,1.4622,4404.4,4404.3,22.8164]
[1755395660683,0.8103,4404.4,4404.3,22.8164]
[1755395660990,0.4244,4404.4,4404.3,22.8164]
[1755395661184,0.2533,4404.4,4404.3,22.8164]
[1755395662885,0.6392,4404.4,4404.3,22.8164]
[1755395663088,0.8828,4404.4,4404.3,22.8164]
[1755395665388,0.2533,4404.4,4404.3,22.8164]
[1755395665588,0.8828,4404.4,4404.3,22.8164]
[1755395667290,3.2078,4404.5,4404.3,22.8164]
[1755395667593,4.1847,4405.1,4405.0,1.5234]
[1755395667792,4.1847,4405.1,4405.0,22.8014]
[1755395668390,4.4283,4405.1,4405.0,22.8014]
[1755395669293,3.2078,4405.1,4405.0,22.8014]
[1755395670386,0.3859,4405.6,4405.1,0.9188]
[1755395670589,3.2078,4405.7,4405.5,1.5234]
[1755395670793,3.2078,4405.7,4405.6,22.7954]
[1755395670996,4.0906,4405.7,4405.6,22.7954]
[1755395671196,4.2617,4405.7,4405.6,22.7954]
[1755395671693,4.4283,4405.7,4405.6,22.7954]
[1755395674599,3.2078,4405.7,4405.6,22.7954]
[1755395674992,3.2078,4406.2,4406.1,1.5234]
[1755395675288,3.2078,4406.2,4406.1,22.7854]
[1755395680099,4.67,4406.2,4406.1,22.7734]
[1755395680893,4.67,4406.2,4405.4,3.2078]
[1755395681098,0.8327,4405.6,4405.5,21.4127]
[1755395681405,0.8327,4405.6,4405.5,21.6754]
[1755395681695,1.4622,4405.6,4405.5,21.6754]
[1755395682105,1.4622,4405.6,4405.5,21.4127]
[1755395682499,1.4622,4405.6,4405.5,21.6754]
[1755395682901,1.4622,4405.6,4405.5,21.9323]
[1755395683102,1.4622,4405.6,4405.5,22.3315]
[1755395683300,1.4622,4405.6,4405.5,22.506]
[1755395684200,1.4622,4405.6,4405.5,22.7714]
[1755395684401,1.4622,4405.6,4405.5,22.7644]
[1755395687508,0.8058,4405.6,4405.5,22.7644]
[1755395688103,0.9757,4405.6,4405.5,22.7644]
[1755395688310,1.2174,4405.6,4405.5,22.7644]
[1755395688710,3.2078,4405.7,4405.5,22.7644]
[1755395689010,4.2412,4405.7,4405.6,1.4806]
[1755395689212,4.4072,4405.7,4405.6,1.4806]
[1755395691113,4.6586,4405.7,4405.6,1.4806]
[1755395692014,3.6211,4405.7,4405.6,1.4806]
[1755395692218,4.4072,4405.7,4405.6,1.4806]
[1755395692419,4.6586,4405.7,4405.6,1.4806]
[1755395692806,4.6586,4405.7,4405.6,0.5814]
[1755395693207,4.6586,4405.7,4405.6,21.8094]
[1755395693411,1.4508,4405.4,4405.3,0.4163]
[1755395693614,1.4508,4405.4,4405.3,21.226]
[1755395693814,1.4508,4405.4,4405.3,21.6423]
[1755395694009,1.4508,4405.4,4405.3,22.2754]
[1755395694214,1.4508,4405.4,4405.3,22.7066]
[1755395695918,1.4508,4405.4,4405.3,21.6423]
[1755395698327,0.5793,4404.8,4404.7,1.4806]
[1755395698528,1.1994,4404.8,4404.7,22.7006]
[1755395698823,0.4133,4404.8,4404.7,0.6004]
[1755395699024,3.2078,4405.2,4404.8,0.2405]
[1755395699226,4.4072,4405.2,4405.1,1.2335]
[1755395699426,3.2078,4405.7,4405.1,22.6976]
[1755395699625,1.1994,4405.6,4405.5,1.4806]
[1755395699929,3.2078,4405.7,4405.5,22.6966]
[1755395700228,3.2078,4405.7,4405.6,1.4806]
[1755395701424,3.8279,4406.2,4405.6,1.4806]
[1755395701624,4.6586,4406.2,4406.1,1.088]
[1755395701920,4.6586,4406.2,4406.1,22.6936]
[1755395702626,4.4072,4406.2,4406.1,22.6936]
[1755395702833,3.6211,4406.2,4406.1,22.6936]
[1755395703927,4.0288,4406.2,4406.1,21.213]
[1755395704126,4.6586,4406.2,4406.1,21.213]
[1755395704427,4.4072,4406.2,4406.1,22.6936]
[1755395704626,3.7871,4406.2,4406.1,22.6936]
[1755395704928,3.6211,4406.2,4406.1,22.6936]
[1755395705132,3.8628,4406.2,4406.1,22.6936]
[1755395705333,3.6211,4406.2,4406.1,22.6936]
[1755395706422,4.4072,4406.2,4406.1,22.6936]
[1755395706830,3.2078,4407.5,4406.2,0.2471]
[1755395707024,1.0334,4407.4,4407.3,0.9188]
[1755395707224,1.1994,4407.4,4407.3,22.6826]
[1755395707527,1.4508,4407.4,4407.3,21.202]
[1755395710132,1.4508,4407.4,4406.7,3.90847]
[1755395710328,1.4508,4406.8,4406.7,4.6884]
[1755395710527,1.4508,4406.8,4406.7,25.8834]
[1755395712533,1.4508,4406.8,4406.7,22.6756]
[1755395712836,1.4508,4406.8,4406.7,21.192]
[1755395713733,0.2514,4406.1,4405.9,32.683]
[1755395713939,1.4508,4406.0,4405.9,32.683]
[1755395714127,0.5793,4405.4,4405.3,1.2335]
[1755395714438,1.1994,4405.4,4405.3,22.6676]
[1755395716439,1.4508,4405.4,4405.3,22.6676]
[1755395716639,1.1994,4405.4,4405.3,22.6676]
[1755395717843,0.6317,4405.7,4405.3,22.6676]
[1755395718043,1.2227,4406.0,4405.9,1.4817]
[1755395718253,1.2227,4406.0,4405.9,22.6637]
[1755395725748,0.6317,4406.5,4405.9,21.7719]
[1755395726044,0.6317,4406.4,4405.9,21.182]
[1755395726239,1.47,4406.0,4405.9,22.2411]
[1755395726547,1.2227,4406.0,4405.9,22.6637]
[1755395727449,0.879,4405.5,4405.2,0.8918]
[1755395727648,1.47,4405.3,4405.2,1.4817]
[1755395727849,1.47,4405.3,4405.2,22.6497]
[1755395728150,1.47,4405.1,4405.0,0.4103]
[1755395728343,1.47,4405.1,4405.0,21.5773]
[1755395728544,1.47,4405.1,4405.0,21.167]
[1755395728946,0.591,4405.1,4404.7,0.6488]
[1755395729149,1.47,4404.7,4404.6,32.92]
[1755395729449,1.47,4404.7,4404.6,54.7338]
[1755395730948,1.47,4404.7,4404.6,32.677]
[1755395731147,1.47,4404.7,4404.6,53.841]
[1755395731552,1.47,4404.7,4404.6,53.84]
[1755395731749,0.3339,4404.4,4404.3,0.243]
[1755395731954,0.879,4404.3,4403.6,0.243]
[1755395732147,1.47,4403.7,4403.6,0.5773]
[1755395732344,1.47,4403.7,4403.6,21.7393]
[1755395732552,1.47,4403.7,4403.6,22.6437]
[1755395732952,1.2227,4403.7,4403.6,22.6437]
[1755395733549,1.47,4403.7,4403.6,22.6437]
[1755395734255,1.2227,4403.7,4403.6,22.6437]
[1755395735256,1.2227,4403.7,4403.6,22.2542]
[1755395735456,1.2227,4403.7,4403.6,22.6427]
[1755395735951,0.9618,4403.7,4403.6,22.6427]
[1755395737460,4.1696,4404.1,4404.0,1.4817]
[1755395737656,0.17331078,4406.5,4404.6,1.4817]
[1755395737657,0.9618,4404.7,4404.6,1.4817]
[1755395737857,1.2227,4404.7,4404.6,22.6407]
[1755395738053,1.47,4404.7,4404.6,21.159]
[1755395738451,0.591,4404.7,4404.6,21.158]
[1755395738656,0.591,4404.7,4403.8,0.8918]
[1755395738960,0.591,4404.7,4403.7,3.2078]
[1755395738961,0.591,4404.0,4403.9,22.3957]
[1755395739157,1.2227,4404.0,4403.9,22.3957]
[1755395739357,1.2227,4404.0,4403.9,22.6387]
[1755395739556,3.2078,4404.5,4404.3,1.4817]
[1755395739754,3.5417,4404.5,4404.4,22.6387]
[1755395739957,4.4305,4404.5,4404.4,22.6387]
[1755395740558,3.7988,4404.5,4404.4,22.6387]
[1755395740755,4.4305,4404.5,4404.4,22.6387]
[1755395743262,3.2078,4404.5,4404.4,22.6387]
[1755395743465,0.591,4404.6,4404.5,1.4817]
[1755395743665,1.2227,4404.6,4404.5,22.6337]
[1755395744166,1.47,4404.6,4404.5,22.6337]
[1755395744563,1.2227,4404.6,4404.5,22.6337]
[1755395747169,1.47,4404.6,4404.5,22.6337]
[1755395749678,1.4395,4404.6,4404.5,21.144]
[1755395752276,0.591,4404.6,4404.0,0.8791]
[1755395752573,1.073,4404.1,4404.0,0.821]
[1755395752779,1.4361,4404.1,4404.0,1.4598]
[1755395753280,1.4361,4404.1,4404.0,22.5988]
[1755395753580,1.4361,4404.1,4404.0,0.8307]
[1755395753782,1.4361,4404.1,4404.0,21.9697]
[1755395754080,1.4361,4404.1,4404.0,21.7169]
[1755395754473,1.4361,4404.1,4404.0,21.9572]
[1755395754676,1.4361,4404.1,4404.0,22.346]
[1755395755182,4.6439,4404.1,4404.0,22.5988]
[1755395755583,4.6439,4404.1,4404.0,0.5779]
[1755395755777,4.6439,4404.1,4404.0,21.5531]
[1755395756580,4.6439,4404.1,4403.4,0.3888]
[1755395756771,0.5876,4403.6,4403.5,0.8307]
[1755395756976,0.83,4403.6,4403.3,0.25]
[1755395757177,0.83,4403.5,4403.4,21.7157]
[1755395757376,0.83,4403.5,4403.4,22.5948]
[1755395757885,1.4361,4403.5,4403.4,22.5948]
[1755395758480,1.1937,4403.5,4403.4,22.5948]
[1755395759886,1.4361,4403.5,4403.4,22.5948]
[1755395760083,0.3631,4404.0,4403.4,22.5948]
[1755395760397,1.60235122,4405.8,4403.9,0.5807]